[Event "DFMM-LV 2023"]
[Site "Braunfels"]
[Date "2023.06.09"]
[Round "2.39"]
[White "Fock, Sana"]
[Black "Schaefer, Ann-Kathrin"]
[Result "1-0"]
[Annotator "NA RC COMBH"]
[ECO "B23"]
[WhiteElo "1785"]
[BlackElo "1695"]
[PlyCount "111"]
[EventDate "2023.06.09"]
[EventType "team-tourn"]
[EventCountry "GER"]
[SourceTitle "playchess.com"]
[Source "ChessBase"]
[SourceQuality "1"]
[TimeControl "40/5400+30:1800+30"]

1. e4 {[%emt 0:00:04]} c5 {[%emt 0:00:03]} 2. Nc3 {[%emt 0:00:05]} Nc6 {[%emt 0:00:08]} 3. f4 {[%emt 0:00:07]} g6 {[%emt 0:00:30]} 4. Nf3 {[%emt 0:00:14]} Bg7 {[%emt 0:00:15]} 5. Bb5 {[%emt 0:00:27]} e6 {[%emt 0:00:32]} 6. Bxc6 {[%emt 0:00:32]} bxc6 {[%emt 0:00:51]} 7. d3 {[%emt 0:01:03]} Ne7 {[%emt 0:00:49]} 8. O-O {[%emt 0:01:33]} O-O {[%emt 1:31:22]} 9. e5 {[%emt 0:08:11]} Nf5 {[%emt 0:00:00]} 10. Ne4 {[%emt 0:02:34]} d6 {[%emt 0:00:00]} 11. exd6 {[%emt 0:08:38]} Nxd6 {[%emt 0:00:00]} 12. Nxc5 {[%emt 0:10:56]} Qb6 {[%emt 0:00:00]} 13. d4 {[%emt 0:01:05]} Rd8 {[%emt 0:00:00]} 14. c3 {[%emt 0:03:39]} Rb8 {[%emt 0:00:00]} 15. Ne5 {[%emt 0:05:20]} Nb7 {[%emt 0:00:00]} 16. Ne4 {[%emt 0:09:27]} c5 {[%emt 0:00:00]} 17. Be3 {[%emt 0:10:39]} cxd4 {[%emt 0:00:00]} 18. Bxd4 {[%emt 0:01:43]} Qc7 {[%emt 0:00:00]} 19. Qe2 {[%emt 0:05:07]} Na5 {[%emt 0:00:00]} 20. Rad1 {[%emt 0:07:32]} Nc6 {[%emt 0:00:00]} 21. Nxc6 {[%emt 0:02:41]} Qxc6 {[%emt 0:00:00]} 22. Bxg7 {[%emt 0:03:09]} Rxd1 {[%emt 0:00:00]} 23. Rxd1 {[%emt 0:00:41]} Kxg7 {[%emt 0:00:00]} 24. b3 {[%emt 0:05:00]} Bb7 {[%emt 0:00:00]} 25. Re1 {[%emt 0:05:25]} Rd8 {[%emt 0:00:00]} 26. c4 {[%emt 0:02:09]} Qc7 {[%emt 0:00:00]} 27. Qb2+ {[%emt 0:01:04]} Kh6 {[%emt 0:00:00]} 28. Qc1 {[%emt 0:02:00]} Kg7 {[%emt 0:00:00]} 29. Qc3+ {[%emt 0:00:29]} Kh6 {[%emt 0:00:00]} 30. Qh3+ {[%emt 0:01:12]} Kg7 {[%emt 0:00:00]} 31. Qc3+ {[%emt 0:01:50]} Kh6 {[%emt 0:00:00]} 32. Qe3 {[%emt 0:00:26]} Bxe4 {[%emt 0:03:12]} 33. Qxe4 {[%emt 0:00:07]} Qa5 {[%emt 0:00:15]} 34. Qe3 {[%emt 0:00:59]} Kg7 {[%emt 0:00:45]} 35. Qe5+ {[%emt 0:00:20]} Qxe5 {[%emt 0:00:15]} 36. fxe5 {[%emt 0:00:26]} a5 {[%emt 0:01:31]} 37. Kf2 {[%emt 0:00:19]} Kf8 {[%emt 0:02:54]} 38. Ke3 {[%emt 0:00:28]} Ke7 {[%emt 0:00:15]} 39. Re2 {[%emt 0:00:33]} f6 {[%emt 0:01:45]} 40. exf6+ {[%emt 0:00:32]} Kxf6 {[%emt 0:00:06]} 41. Rd2 {[%emt 0:05:34]} Rc8 {[%emt 0:03:57]} 42. Ke4 {[%emt 0:01:22]} Rc5 {[%emt 0:00:36]} 43. Rf2+ {[%emt 0:00:31]} Ke7 {[%emt 0:00:27]} 44. Rf3 {[%emt 0:00:30]} Kd6 {[%emt 0:01:13]} 45. Rd3+ {[%emt 0:03:43]} Kc6 {[%emt 0:00:46]} 46. h3 {[%emt 0:02:03]} Rg5 {[%emt 0:04:18]} 47. g3 {[%emt 0:01:48]} Kc7 {[%emt 0:01:45]} 48. a3 {[%emt 0:01:31]} Rc5 {[%emt 0:02:24]} 49. g4 {[%emt 0:03:40]} Kc6 {[%emt 0:03:14]} 50. h4 {[%emt 0:00:43]} Kc7 {[%emt 0:03:48]} 51. Kd4 {[%emt 0:02:05]} Rc6 {[%emt 0:08:01]} 52. c5 {[%emt 0:02:59]} Kb7 {[%emt 0:00:49]} 53. b4 {[%emt 0:00:20]} axb4 {[%emt 0:00:43]} 54. axb4 {[%emt 0:00:06]} Ka6 {[%emt 0:00:25]} 55. Kc4 {[%emt 0:01:48]} Kb7 {[%emt 0:00:50]} 56. Rd7+ {[%emt 0:00:34]} 1-0

[Event "DFMM-LV 2023"]
[Site "Braunfels"]
[Date "2023.06.09"]
[Round "2.40"]
[White "Albayrak, Melissa"]
[Black "Grosse-Honebrink, Brigitte"]
[Result "1-0"]
[Annotator "NA RC COMBH"]
[ECO "C02"]
[WhiteElo "1362"]
[BlackElo "1891"]
[PlyCount "143"]
[EventDate "2023.06.09"]
[EventType "team-tourn"]
[EventCountry "GER"]
[SourceTitle "playchess.com"]
[Source "ChessBase"]
[SourceQuality "1"]
[TimeControl "40/5400+30:1800+30"]

1. e4 {[%emt 0:00:02]} e6 {[%emt 0:00:27]} 2. d4 {[%emt 0:00:10]} d5 {[%emt 0:00:17]} 3. e5 {[%emt 0:00:22]} c5 {[%emt 0:00:14]} 4. c3 {[%emt 0:00:18]} Nc6 {[%emt 0:00:35]} 5. Nf3 {[%emt 0:00:26]} Qb6 {[%emt 0:00:24]} 6. Be2 {[%emt 0:01:36]} cxd4 {[%emt 0:01:29]} 7. cxd4 {[%emt 0:01:13]} Nge7 {[%emt 0:02:03]} 8. Na3 {[%emt 0:01:41]} Nf5 {[%emt 0:02:21]} 9. Nc2 {[%emt 0:01:45]} Be7 {[%emt 0:03:47]} 10. O-O {[%emt 0:02:36]} O-O {[%emt 0:01:37]} 11. Rb1 {[%emt 0:04:50]} Bd7 {[%emt 0:01:41]} 12. b4 {[%emt 0:03:53]} a5 {[%emt 0:04:29]} 13. b5 {[%emt 0:05:24]} Nb4 {[%emt 0:02:17]} 14. a4 {[%emt 0:03:43]} Nxc2 {[%emt 0:05:47]} 15. Qxc2 {[%emt 0:00:23]} Rac8 {[%emt 0:02:39]} 16. Qd1 {[%emt 0:01:32]} Bb4 {[%emt 0:06:02]} 17. Bd2 {[%emt 0:20:33]} Bc3 {[%emt 0:08:37]} 18. Bxc3 {[%emt 0:01:08]} Rxc3 {[%emt 0:00:06]} 19. Qd2 {[%emt 0:03:05]} Rfc8 {[%emt 0:10:36]} 20. Bd3 {[%emt 0:07:36]} Qc7 {[%emt 0:05:41]} 21. Ra1 {[%emt 0:08:34]} b6 {[%emt 0:03:38]} 22. h3 {[%emt 0:02:50]} Qd8 {[%emt 0:05:56]} 23. Rfc1 {[%emt 0:04:41]} R3c7 {[%emt 0:00:48]} 24. Re1 {[%emt 0:02:57]} h6 {[%emt 0:04:29]} 25. Qf4 {[%emt 0:03:04]} Qe7 {[%emt 0:04:23]} 26. Bxf5 {[%emt 0:09:03]} exf5 {[%emt 0:00:07]} 27. Nd2 {[%emt 0:04:14]} g5 {[%emt 0:02:26]} 28. Qf3 {[%emt 0:00:56]} Be6 {[%emt 0:00:48]} 29. g4 {[%emt 0:01:32]} fxg4 {[%emt 0:01:12]} 30. hxg4 {[%emt 0:00:07]} Qd7 {[%emt 0:01:01]} 31. Qf6 {[%emt 0:00:33]} Kh7 {[%emt 0:01:23]} 32. Kg2 {[%emt 0:02:04]} Rg8 {[%emt 0:03:42]} 33. Kg3 {[%emt 0:00:24]} Rc3+ {[%emt 0:01:38]} 34. Re3 {[%emt 0:00:19]} Rxe3+ {[%emt 0:01:00]} 35. fxe3 {[%emt 0:00:08]} Qc7 {[%emt 0:02:17]} 36. Rh1 {[%emt 0:01:12]} Rg6 {[%emt 0:00:19]} 37. Qf2 {[%emt 0:00:11]} Qc2 {[%emt 0:02:09]} 38. Nf3 {[%emt 0:02:01]} Qe4 {[%emt 0:04:06]} 39. Kg2 {[%emt 0:01:15]} Bxg4 {[%emt 0:02:31]} 40. Kg3 {[%emt 0:00:37]} Be6 {[%emt 0:01:20]} 41. Rc1 {[%emt 0:03:07]} Qg4+ {[%emt 0:07:51]} 42. Kh2 {[%emt 0:00:15]} Qh3+ {[%emt 0:00:25]} 43. Kg1 {[%emt 0:00:39]} g4 {[%emt 0:02:43]} 44. Ne1 {[%emt 0:06:56]} (44. Nd2 $142 g3 45. Qg2) 44... g3 {[%emt 0:04:01]} 45. Qg2 {[%emt 0:01:16]} Qf5 {[%emt 0:03:24]} (45... Qh4 $142 46. Qh1 Qe7) 46. Qf3 {[%emt 0:02:11] [#]} Qg5 $2 {[%emt 0:03:43]} ({Black should play} 46... h5 $1 $19 {[%cal Rh5h4]} 47. Qxf5 Bxf5) 47. Rc6 $2 {[%emt 0:06:05]} (47. Ng2 $17 {only move.}) 47... Qh4 $19 {[%emt 0:02:59]} 48. Qh1 {[%emt 0:03:04]} Qg4 {[%emt 0:01:45]} 49. Qf3 {[%emt 0:02:09]} h5 {[%emt 0:01:43]} 50. Rxb6 {[%emt 0:00:49]} h4 {[%emt 0:02:20]} 51. Qxg4 {[%emt 0:00:27]} Bxg4 {[%emt 0:01:40]} 52. Rd6 {[%emt 0:01:58]} Be6 {[%emt 0:07:34]} 53. b6 {[%emt 0:00:50]} Rg8 {[%emt 0:00:00]} 54. b7 {[%emt 0:02:22]} h3 {[%emt 0:00:00]} 55. Rb6 {[%emt 0:00:38]} Rb8 {[%emt 0:00:00]} 56. Rb5 {[%emt 0:00:39]} Bf5 {[%emt 0:00:00]} 57. Nf3 {[%emt 0:00:20]} h2+ {[%emt 0:00:00]} 58. Nxh2 {[%emt 0:00:30]} gxh2+ {[%emt 0:00:00]} 59. Kxh2 {[%emt 0:00:02]} Be4 {[%emt 0:00:00]} 60. Kg3 {[%emt 0:00:06]} Kg6 {[%emt 0:00:00]} 61. Kf4 {[%emt 0:00:12]} Bh1 {[%emt 0:01:33]} 62. Rb6+ {[%emt 0:00:08]} Kg7 {[%emt 0:00:15]} 63. Kg5 {[%emt 0:00:33]} Be4 {[%emt 0:00:09]} 64. Rb5 {[%emt 0:00:18]} Bf3 {[%emt 0:00:48]} 65. Kf5 {[%emt 0:00:55]} Be4+ {[%emt 0:00:51]} 66. Kg5 {[%emt 0:00:12]} Kf8 {[%emt 0:00:21]} 67. Kf6 {[%emt 0:00:15]} Ke8 {[%emt 0:00:29]} 68. e6 {[%emt 0:00:29]} fxe6 {[%emt 0:00:14]} 69. Kxe6 {[%emt 0:00:07]} Kd8 {[%emt 0:00:25]} 70. Kd6 {[%emt 0:00:08]} Bf3 {[%emt 0:00:34]} 71. Rxa5 {[%emt 0:00:17]} Bg4 {[%emt 0:00:48]} 72. Ra8 {[%emt 0:00:23]} 1-0

[Event "DFMM-LV 2023"]
[Site "Braunfels"]
[Date "2023.06.09"]
[Round "2.41"]
[White "Nguyen, Ha Thanh"]
[Black "Hund, Sarah"]
[Result "1/2-1/2"]
[Annotator "TA"]
[ECO "B44"]
[WhiteElo "1968"]
[BlackElo "1977"]
[PlyCount "63"]
[EventDate "2023.06.09"]
[EventType "team-tourn"]
[EventCountry "GER"]
[SourceTitle "playchess.com"]
[Source "ChessBase"]
[SourceQuality "1"]
[TimeControl "40/5400+30:1800+30"]

{[%evp 11,63,-4,29,1,26,0,-6,-39,-13,-29,-14,-44,-33,-30,-18,-26,-19,-26,-9,-35,-32,-31,-37,-60,-24,-71,-36,-51,-40,-40,-35,-22,-26,-113,-113,-118,-60,-63,-37,-55,-44,-44,-37,-42,-45,-36,-33,-54,-28,-69,-42,-53,-58,-78]} 1. e4 {[%emt 0:00:03]} c5 {[%emt 0:00:06]} 2. Nf3 {[%emt 0:00:09]} e6 {[%emt 0:00:10]} 3. d4 {[%emt 0:00:16]} cxd4 {[%emt 0:00:09]} 4. Nxd4 {[%emt 0:00:05]} Nc6 {[%emt 0:00:12]} 5. Be3 {[%emt 0:07:21]} Nf6 {[%emt 0:03:19]} 6. Bd3 {[%emt 0:00:53]} Qc7 {[%emt 0:01:46]} 7. Qe2 {[%emt 0:07:19] B44: Sicilian: Taimanov: 5 Nb5.} a6 {[%emt 0:04:06] [#]} (7... d5 $5 {[%cal Rd5e4]}) 8. a4 $146 {[%emt 0:10:13]} ({Predecessor:} 8. O-O Bc5 9. Nxe6 dxe6 10. Bxc5 Ne5 11. Bd4 Nxd3 12. Qxd3 e5 13. Be3 Be6 14. Nd2 {1-0 Palacio,E (1896)-Perez Selios,L (1429) Montevideo Duchamp Cup 5th 2022 (9)}) 8... d5 {[%emt 0:13:07]} 9. Nxc6 {[%emt 0:09:26][%cal Oe4e5] [#] Strongly threatening e5! The position is equal.} bxc6 {[%emt 0:03:34]} 10. exd5 {[%emt 0:01:33]} cxd5 {[%emt 0:01:38]} 11. h3 {[%emt 0:12:36]} Be7 {[%emt 0:07:35]} (11... e5 $5 {[%cal Re5e4]} 12. c3 Bd6 $15) 12. O-O {[%emt 0:06:12]} O-O {[%emt 0:02:41]} 13. Bd4 {[%emt 0:05:15]} Nd7 {[%emt 0:08:21]} 14. Re1 {[%emt 0:10:39]} Qf4 {[%emt 0:10:23]} 15. Qe3 {[%emt 0:02:25]} Qxe3 {[%emt 0:02:37]} (15... Qh4 {is interesting.} 16. c3 Bg5 17. Qf3 Bb7) 16. Bxe3 {[%emt 0:00:23]} Nc5 {[%emt 0:02:20]} 17. Be2 {[%emt 0:01:22]} Bd7 {[%emt 0:02:12]} 18. b3 {[%emt 0:04:46]} (18. a5 $11 {was preferrable.}) 18... Rfc8 {[%emt 0:02:25]} 19. Bf3 {[%emt 0:03:28]} Bf6 {[%emt 0:03:36]} 20. Ra2 {[%emt 0:00:17]} Rab8 {[%emt 0:00:38]} 21. Rd1 {[%emt 0:01:26]} Be8 {[%emt 0:02:52]} 22. Bd4 {[%emt 0:04:40]} (22. Be2 $11) 22... Bxd4 $17 {[%emt 0:02:56]} 23. Rxd4 {[%emt 0:00:09]} a5 {[%emt 0:00:41]} ({Black should try} 23... Bxa4 $17 24. Nd2 Bc6) 24. Na3 $15 {[%emt 0:01:28]} Na6 {[%emt 0:02:06]} 25. Rd2 {[%emt 0:00:54]} Rc3 {[%emt 0:03:29]} 26. Ra1 {[%emt 0:02:06]} Nb4 {[%emt 0:01:32]} 27. Re1 {[%emt 0:01:59]} Kf8 {[%emt 0:03:46]} 28. Bd1 {[%emt 0:00:24]} Na6 {[%emt 0:04:06]} 29. Re3 {[%emt 0:01:58]} Rbc8 {[%emt 0:03:58]} 30. Be2 {[%emt 0:02:22]} Nb4 {[%emt 0:01:17]} 31. Rxc3 {[%emt 0:00:28]} Rxc3 {[%emt 0:00:06]} 32. Bd1 {[%emt 0:01:18] Weighted Error Value: White=0.20 (precise) /Black=0.13 (very precise)} 1/2-1/2

[Event "DFMM-LV 2023"]
[Site "Braunfels"]
[Date "2023.06.09"]
[Round "2.42"]
[White "Novikova, Margarita"]
[Black "Skibbe, Diana"]
[Result "1-0"]
[Annotator "TA"]
[ECO "A82"]
[WhiteElo "1985"]
[BlackElo "1956"]
[PlyCount "75"]
[EventDate "2023.06.09"]
[EventType "team-tourn"]
[EventCountry "GER"]
[SourceTitle "playchess.com"]
[Source "ChessBase"]
[SourceQuality "1"]
[TimeControl "40/5400+30:1800+30"]

{[%evp 9,75,18,35,8,40,42,89,83,106,34,35,25,48,45,50,19,28,-1,58,45,62,27,50,23,177,166,155,176,168,167,250,253,241,239,295,252,254,237,254,256,298,295,526,536,527,533,691,694,754,728,752,745,725,701,880,875,1051,1042,1027,1014,2077,2063,2016,1383,5110,3237,29985,29985]} 1. d4 {[%emt 0:00:17]} f5 {[%emt 0:00:06]} 2. e4 {[%emt 0:03:47]} fxe4 {[%emt 0:00:16]} 3. f3 {[%emt 0:00:02]} Nf6 {[%emt 0:01:24]} 4. Bg5 {[%emt 0:03:19]} e3 {[%emt 0:01:33]} 5. Bxe3 {[%emt 0:07:06]} e6 {[%emt 0:00:36][%cal Oc7c5]} 6. Bd3 {[%emt 0:03:38] [#] A82: Dutch Defence: Staunton Gambit.} Bd6 $146 {[%emt 0:02:41]} ({Predecessor:} 6... b6 7. Ne2 Nd5 8. Bf2 Qf6 9. c3 Bd6 10. Nd2 Nf4 11. Nxf4 Qxf4 12. Ne4 O-O {1-0 Stingl,R (1980)-Bittner,H (1920) Regionalliga Nord-West 1718 2017 (6.5)}) 7. c4 {[%emt 0:07:21]} c5 {[%emt 0:01:28]} 8. dxc5 $16 {[%emt 0:00:53] White is better.} Be7 {[%emt 0:00:49]} 9. Nd2 {[%emt 0:16:54] White is more active.} (9. Nc3 $16) 9... Na6 $14 {[%emt 0:01:16]} 10. Nb3 {[%emt 0:00:38]} Qc7 {[%emt 0:01:15][%cal Ra6c5]} 11. Ne2 {[%emt 0:02:55]} Nxc5 {[%emt 0:01:56]} 12. Bc2 {[%emt 0:02:26]} b6 {[%emt 0:11:38]} 13. Nbd4 {[%emt 0:00:36]} a6 {[%emt 0:00:42] Repels Nb5} (13... d5 $1 $11) 14. O-O {[%emt 0:00:39]} (14. b4 $5 {[%cal Rb4c5]}) 14... O-O {[%emt 0:02:40]} 15. Qd2 $36 {[%emt 0:02:50][%mdl 2048] White has the initiative.} (15. b4 $5 {[%cal Rb4c5]}) 15... d5 {[%emt 0:06:06]} 16. cxd5 $1 {[%emt 0:09:56]} exd5 {[%emt 0:01:08] Loses the game.} (16... Nxd5 $11 17. b4 Nxe3 18. Qxe3 e5) 17. b4 $18 {[%emt 0:01:07]} Ne6 {[%emt 0:00:34]} 18. Rac1 {[%emt 0:01:20]} Qd6 {[%emt 0:02:29] [#]} 19. Nc6 $1 {[%emt 0:02:17][%mdl 512]} Bb7 {[%emt 0:00:28]} (19... Bd7 $142) (19... Bd8 20. Nxd8) 20. Nxe7+ {[%emt 0:00:25]} Qxe7 {[%emt 0:00:05]} 21. Bxb6 {[%emt 0:00:17]} Rfc8 {[%emt 0:03:51]} 22. Bb3 {[%emt 0:07:46]} Qd6 {[%emt 0:01:40]} 23. Be3 {[%emt 0:01:36]} Kh8 {[%emt 0:00:46]} 24. Nd4 {[%emt 0:00:24]} Nc7 {[%emt 0:01:55]} 25. a4 {[%emt 0:03:12] Threatens to win with Bf4.} Qd7 $2 {[%emt 0:02:08] Black is weak on the dark squares} (25... Ne6 {might work better.} 26. Nxe6 Qxe6) 26. Bc2 {[%emt 0:01:12][%cal Bb3c2,Bc2f5,Bf5e6][%mdl 32]} Qf7 {[%emt 0:04:17]} 27. Bf5 {[%emt 0:00:50] Against Ne6} Nd7 {[%emt 0:04:01]} 28. Bf4 {[%emt 0:03:33]} Ne8 {[%emt 0:01:01]} 29. Be6 {[%emt 0:00:40]} Qe7 {[%emt 0:00:41]} 30. Rxc8 {[%emt 0:01:02]} Rxc8 {[%emt 0:00:09]} 31. Re1 {[%emt 0:00:38]} Nef6 {[%emt 0:03:27]} 32. Nf5 {[%emt 0:07:11]} Qd8 {[%emt 0:02:18]} 33. Nd6 {[%emt 0:00:12][%csl LRb7,LRc8]} Qb6+ {[%emt 0:02:01]} 34. Kh1 {[%emt 0:00:21]} Rc6 {[%emt 0:02:34]} 35. a5 {[%emt 0:00:19]} ({Not} 35. Bxd5 Rxd6 36. a5 Rxd5 $11) 35... Qa7 {[%emt 0:00:02]} 36. Bxd7 {[%emt 0:00:27] [#] Threatening mate with Nf7+. This pair of bishops is nice.} Rxd6 {[%emt 0:01:03]} 37. Bxd6 {[%emt 0:00:14][%cal Od2f4] White threatens Qf4! and mate.} d4 {[%emt 0:00:05]} 38. Bc5 {[%emt 0:01:11] Weighted Error Value: White=0.12 (very precise) /Black=0.70} 1-0

[Event "DFMM-LV 2023"]
[Site "Braunfels"]
[Date "2023.06.09"]
[Round "2.43"]
[White "Bethge, Johanna"]
[Black "Haug, Mara"]
[Result "0-1"]
[Annotator "NA RC COMBH"]
[ECO "B38"]
[WhiteElo "1721"]
[BlackElo "1754"]
[PlyCount "88"]
[EventDate "2023.06.09"]
[EventType "team-tourn"]
[EventCountry "GER"]
[SourceTitle "playchess.com"]
[Source "ChessBase"]
[SourceQuality "1"]
[TimeControl "40/5400+30:1800+30"]

1. e4 {[%emt 0:00:04]} c5 {[%emt 0:00:09]} 2. Nf3 {[%emt 0:00:10]} Nc6 {[%emt 0:00:09]} 3. d4 {[%emt 0:00:13]} cxd4 {[%emt 0:00:06]} 4. Nxd4 {[%emt 0:00:05]} g6 {[%emt 0:00:10]} 5. c4 {[%emt 0:00:43]} Bg7 {[%emt 0:00:08]} 6. Be3 {[%emt 0:00:15]} Nf6 {[%emt 0:00:15]} 7. Nc3 {[%emt 0:04:02]} O-O {[%emt 0:00:19]} 8. Be2 {[%emt 0:01:15]} d6 {[%emt 0:00:11]} 9. O-O {[%emt 0:00:13]} Bd7 {[%emt 0:00:10]} 10. Qd2 {[%emt 0:00:45]} Nxd4 {[%emt 0:00:51]} 11. Bxd4 {[%emt 0:00:05]} Bc6 {[%emt 0:01:09]} 12. f3 {[%emt 0:00:15]} a5 {[%emt 0:00:22]} 13. b3 {[%emt 0:00:58]} Nd7 {[%emt 0:00:12]} 14. Be3 {[%emt 0:00:22]} Nc5 {[%emt 0:01:00]} 15. Rab1 {[%emt 0:02:41]} Qb6 {[%emt 0:04:28]} 16. Rfc1 {[%emt 0:01:57]} Rfc8 {[%emt 0:01:36]} 17. Rc2 {[%emt 0:09:45]} h5 {[%emt 0:08:11]} 18. Bf1 {[%emt 0:01:47]} Kh7 {[%emt 0:02:55]} 19. Ne2 {[%emt 0:05:58]} Qd8 {[%emt 0:05:12]} 20. Nd4 {[%emt 0:08:13]} Qf8 {[%emt 0:13:15]} 21. a3 {[%emt 0:03:33]} Bh6 {[%emt 0:06:30]} 22. Nxc6 {[%emt 0:02:13]} Bxe3+ {[%emt 0:04:36]} 23. Qxe3 {[%emt 0:00:06]} Rxc6 {[%emt 0:01:22]} 24. b4 {[%emt 0:01:18]} axb4 {[%emt 0:00:30]} 25. axb4 {[%emt 0:00:05]} Ne6 {[%emt 0:04:04]} 26. g3 {[%emt 0:12:37]} Qg7 {[%emt 0:04:22]} 27. Qc3 {[%emt 0:09:15]} Nd4 {[%emt 0:02:22]} 28. Rcc1 {[%emt 0:00:33]} Rca6 {[%emt 0:01:24]} 29. c5 {[%emt 0:04:43]} Ra3 {[%emt 0:01:09]} 30. Qc4 {[%emt 0:00:03]} Nxf3+ {[%emt 0:00:58]} 31. Kh1 {[%emt 0:00:02]} Nd2 {[%emt 0:02:28]} 32. Qd5 {[%emt 0:01:23]} Nxb1 {[%emt 0:00:58]} 33. Rxb1 {[%emt 0:00:02]} R8a7 {[%emt 0:08:35]} 34. cxd6 {[%emt 0:02:58]} exd6 {[%emt 0:01:20]} 35. Qxd6 {[%emt 0:00:16]} Ra1 {[%emt 0:00:37]} 36. Rxa1 {[%emt 0:01:07]} Rxa1 {[%emt 0:00:48]} 37. Qf4 {[%emt 0:03:31]} Kg8 {[%emt 0:03:39]} 38. e5 {[%emt 0:03:50]} Re1 {[%emt 0:01:50]} 39. Kg2 {[%emt 0:02:06]} Qxe5 {[%emt 0:00:57]} 40. Qd2 {[%emt 0:00:09]} Qe4+ {[%emt 0:01:03]} 41. Kf2 {[%emt 0:30:25]} Rxf1+ {[%emt 0:33:49]} 42. Kxf1 {[%emt 0:00:57]} Qh1+ {[%emt 0:00:10]} 43. Ke2 {[%emt 0:00:24]} Qxh2+ {[%emt 0:00:07]} 44. Kd1 {[%emt 0:00:11]} Qxd2+ {[%emt 0:00:44]} 0-1

[Event "DFMM-LV 2023"]
[Site "Braunfels"]
[Date "2023.06.09"]
[Round "2.44"]
[White "Wellenreich, Jenni"]
[Black "Dietrich, Mareike"]
[Result "1/2-1/2"]
[Annotator "NA RC COMBH"]
[ECO "E11"]
[WhiteElo "1828"]
[BlackElo "1771"]
[PlyCount "36"]
[EventDate "2023.06.09"]
[EventType "team-tourn"]
[EventCountry "GER"]
[SourceTitle "playchess.com"]
[Source "ChessBase"]
[SourceQuality "1"]
[TimeControl "40/5400+30:1800+30"]

1. d4 {[%emt 0:00:04]} Nf6 {[%emt 0:00:04]} 2. c4 {[%emt 0:00:07]} e6 {[%emt 0:00:03]} 3. Nf3 {[%emt 0:01:34]} Bb4+ {[%emt 0:00:05]} 4. Bd2 {[%emt 0:03:52]} c5 {[%emt 0:00:31]} 5. dxc5 {[%emt 0:07:38]} Bxc5 {[%emt 0:03:45]} 6. Nc3 {[%emt 0:01:42]} b6 {[%emt 0:02:34]} 7. a3 {[%emt 0:02:59]} Bb7 {[%emt 0:04:29]} 8. Bg5 {[%emt 0:02:07]} Bxf3 {[%emt 0:06:24]} 9. exf3 {[%emt 0:00:42]} Be7 {[%emt 0:05:09]} 10. Bd3 {[%emt 0:03:12]} Nc6 {[%emt 0:00:18]} 11. O-O {[%emt 0:00:51]} O-O {[%emt 0:02:49]} 12. Rc1 {[%emt 0:04:13]} Rc8 {[%emt 0:02:45]} 13. Re1 {[%emt 0:07:19]} Na5 {[%emt 0:04:57]} 14. Qa4 {[%emt 0:14:40]} d5 {[%emt 0:04:39]} 15. Bxf6 {[%emt 0:05:58]} Bxf6 {[%emt 0:00:48]} 16. cxd5 {[%emt 0:02:18]} Bxc3 {[%emt 0:01:57]} 17. Qe4 {[%emt 0:03:27]} g6 {[%emt 0:03:08]} 18. Rxc3 {[%emt 0:03:23]} Rxc3 {[%emt 0:55:05]} 1/2-1/2

[Event "DFMM-LV 2023"]
[Site "Braunfels"]
[Date "2023.06.09"]
[Round "2.45"]
[White "Kohl, Natalie"]
[Black "Schneider, Birgit"]
[Result "1/2-1/2"]
[Annotator "NA RC COMBH"]
[ECO "B22"]
[WhiteElo "1504"]
[BlackElo "1855"]
[PlyCount "42"]
[EventDate "2023.06.09"]
[EventType "team-tourn"]
[EventCountry "GER"]
[SourceTitle "playchess.com"]
[Source "ChessBase"]
[SourceQuality "1"]
[TimeControl "40/5400+30:1800+30"]

1. e4 {[%emt 0:00:10]} c5 {[%emt 0:00:18]} 2. c3 {[%emt 0:00:28]} d5 {[%emt 0:00:07]} 3. exd5 {[%emt 0:00:29]} Qxd5 {[%emt 0:00:15]} 4. d4 {[%emt 0:00:57]} cxd4 {[%emt 0:00:16]} 5. Qxd4 {[%emt 0:08:54]} Nf6 {[%emt 0:06:17]} 6. Qxd5 {[%emt 0:01:44]} Nxd5 {[%emt 0:00:37]} 7. Nf3 {[%emt 0:00:08]} Nc6 {[%emt 0:05:14]} 8. Bc4 {[%emt 0:02:14]} Nb6 {[%emt 0:05:44]} 9. Nbd2 {[%emt 0:03:24]} Bg4 {[%emt 0:07:01]} 10. Bb3 {[%emt 0:02:20]} e6 {[%emt 0:04:29]} 11. O-O {[%emt 0:05:04]} Be7 {[%emt 0:01:34]} 12. Re1 {[%emt 0:04:00]} O-O {[%emt 0:06:29]} 13. h3 {[%emt 0:01:01]} Bh5 {[%emt 0:04:42]} 14. a4 {[%emt 0:28:52]} Rfd8 {[%emt 0:17:45]} 15. a5 {[%emt 0:06:02]} Nd5 {[%emt 0:03:03]} 16. a6 {[%emt 0:10:50]} b6 {[%emt 0:04:13]} 17. Ba4 {[%emt 0:01:57]} Rac8 {[%emt 0:03:01]} 18. Bxc6 {[%emt 0:05:15]} Rxc6 {[%emt 0:00:32]} 19. Nd4 {[%emt 0:00:19]} Rcc8 {[%emt 0:05:07]} 20. Ne4 {[%emt 0:06:13]} Bg6 {[%emt 0:02:32]} 21. Bg5 {[%emt 0:03:03]} Bxg5 {[%emt 0:04:42]} 1/2-1/2

[Event "DFMM-LV 2023"]
[Site "Braunfels"]
[Date "2023.06.09"]
[Round "2.46"]
[White "Kohm, Vanessa"]
[Black "Loos, Tilda"]
[Result "0-1"]
[Annotator "NA RC COMBH"]
[ECO "E18"]
[WhiteElo "1769"]
[BlackElo "1401"]
[PlyCount "58"]
[EventDate "2023.06.09"]
[EventType "team-tourn"]
[EventCountry "GER"]
[SourceTitle "playchess.com"]
[Source "ChessBase"]
[SourceQuality "1"]
[TimeControl "40/5400+30:1800+30"]

1. d4 {[%emt 0:00:05]} Nf6 {[%emt 0:00:20]} 2. Nf3 {[%emt 0:00:27]} e6 {[%emt 0:00:13]} 3. c4 {[%emt 0:00:12]} b6 {[%emt 0:00:15]} 4. g3 {[%emt 0:01:24]} Bb7 {[%emt 0:00:50]} 5. Bg2 {[%emt 0:00:54]} Be7 {[%emt 0:00:12]} 6. Nc3 {[%emt 0:00:40]} O-O {[%emt 0:00:51]} 7. O-O {[%emt 0:02:57]} d5 {[%emt 0:00:46]} 8. cxd5 {[%emt 0:01:32]} Nxd5 {[%emt 0:00:13]} 9. Qc2 {[%emt 0:02:23]} Nd7 {[%emt 0:01:36]} 10. Rd1 {[%emt 0:08:33]} N7f6 {[%emt 0:09:33]} 11. e3 {[%emt 0:09:32]} Nb4 {[%emt 0:04:21]} 12. Qa4 {[%emt 0:07:27]} Bc6 {[%emt 0:01:56]} 13. Qb3 {[%emt 0:00:45]} a5 {[%emt 0:02:51]} 14. a3 {[%emt 0:04:31]} a4 {[%emt 0:04:35]} 15. Qc4 {[%emt 0:01:22]} b5 {[%emt 0:05:17]} 16. Qe2 {[%emt 0:02:21]} Nbd5 {[%emt 0:01:25]} 17. Nxb5 {[%emt 0:01:57]} Qb8 {[%emt 0:03:51]} 18. Nc3 {[%emt 0:01:54]} Nxc3 {[%emt 0:00:31]} 19. bxc3 {[%emt 0:00:09]} Qb3 {[%emt 0:02:18]} 20. Nd2 {[%emt 0:06:32]} Qxc3 {[%emt 0:06:36]} 21. Ra2 {[%emt 0:10:33]} Bxg2 {[%emt 0:00:54]} 22. Kxg2 {[%emt 0:00:23]} Qc6+ {[%emt 0:00:45]} 23. Nf3 {[%emt 0:06:33]} Ne4 {[%emt 0:03:51]} 24. Rc2 {[%emt 0:08:59]} Qb7 {[%emt 0:04:19]} 25. Rb2 {[%emt 0:04:16]} Qc6 {[%emt 0:00:52]} 26. Rc2 {[%emt 0:01:57]} Qb7 {[%emt 0:00:09]} 27. Kg1 {[%emt 0:05:00]} Rfd8 {[%emt 0:01:28]} 28. Rb2 {[%emt 0:04:29]} Qd5 {[%emt 0:02:01]} 29. Rb5 {[%emt 0:02:19]} Nc3 {[%emt 0:01:15]} 0-1